bitfinex/quotes_BTCUSD_20230404
["timestamp","ask_amount","ask_price","bid_price","bid_amount"]
[1680638153386,0.06230312,28187.0,28183.0,0.402129]
[1680638154064,0.06230312,28187.0,28183.0,0.402069]
[1680638154317,0.06230312,28187.0,28184.0,0.39323815]
[1680638154543,0.06230312,28187.0,28184.0,0.39335815]
[1680638154985,0.06230312,28187.0,28184.0,0.39341815]
[1680638155211,0.36230312,28187.0,28184.0,0.39341815]
[1680638155430,0.36730312,28187.0,28184.0,0.39341815]
[1680638155651,0.06730312,28187.0,28184.0,0.39341815]
[1680638155877,0.06730312,28187.0,28184.0,0.39323815]
[1680638156098,0.005,28187.0,28185.0,70.0]
[1680638156340,0.005,28187.0,28186.0,0.051992]
[1680638156570,0.005,28187.0,28186.0,0.44392957]
[1680638157065,0.03191869,28188.0,28186.0,0.44392957]
[1680638157298,0.03191869,28188.0,28187.0,0.053966]
[1680638158857,0.03691869,28188.0,28187.0,0.053966]
[1680638160176,0.03191869,28188.0,28186.0,0.054484]
[1680638160404,0.03191869,28188.0,28187.0,0.34587998]
[1680638160686,0.03191869,28188.0,28187.0,0.40132498]
[1680638161346,0.03191869,28188.0,28187.0,0.40332498]
[1680638161573,0.33191869,28188.0,28187.0,0.40132498]
[1680638161800,0.33212869,28188.0,28187.0,0.41632498]
[1680638164426,0.03212869,28188.0,28187.0,0.41632498]
[1680638164647,0.03191869,28188.0,28187.0,0.41632498]
[1680638167312,0.03191869,28188.0,28187.0,0.070445]
[1680638169538,0.03191869,28188.0,28187.0,0.44933494]
[1680638174533,0.03191869,28188.0,28187.0,0.30267521]
[1680638177293,0.00597652,28188.0,28187.0,0.30267521]
[1680638182029,0.30597652,28188.0,28187.0,0.30267521]
[1680638182249,0.30597652,28188.0,28187.0,0.30285521]
[1680638182475,0.3563416,28188.0,28187.0,0.038248]
[1680638182749,0.3563416,28188.0,28187.0,0.038068]
[1680638183402,0.57168895,28188.0,28187.0,0.038068]
[1680638183630,1.07022768,28188.0,28185.0,70.00018]
[1680638183862,0.2154732,28187.0,28185.0,70.0]
[1680638184084,0.3,28186.0,28185.0,70.00012]
[1680638184302,0.51559909,28186.0,28185.0,70.00018]
[1680638184772,0.51574909,28186.0,28185.0,70.0]
[1680638184993,0.51580909,28186.0,28185.0,70.0]
[1680638185463,0.70345172,28186.0,28185.0,70.0]
[1680638185684,0.84763081,28186.0,28185.0,70.0]
[1680638185889,0.86663081,28186.0,28185.0,70.002]
[1680638187422,0.72245172,28186.0,28185.0,70.002]
[1680638187850,0.53480909,28186.0,28185.0,70.002]
[1680638190242,0.68642109,28186.0,28185.0,70.002]
[1680638190607,0.55259575,28186.0,28185.0,70.002]
[1680638191261,0.55259575,28186.0,28185.0,70.00212]
[1680638191732,0.55259575,28186.0,28185.0,70.002]
[1680638191949,0.55259575,28186.0,28185.0,0.002]
[1680638192169,0.57540075,28186.0,28185.0,0.002]
[1680638192603,0.69454835,28186.0,28185.0,0.002]
[1680638192827,0.86731009,28186.0,28185.0,0.002]
[1680638193065,0.86710009,28186.0,28185.0,0.002]
[1680638195064,0.86731009,28186.0,28185.0,0.002]
[1680638196375,0.55259575,28186.0,28185.0,0.002]
[1680638196575,0.53480909,28186.0,28185.0,0.002]
[1680638196801,0.53459909,28186.0,28185.0,0.002]
[1680638197455,0.51559909,28186.0,28184.0,0.05013721]
[1680638197677,0.52859909,28186.0,28185.0,0.001]
[1680638197894,0.51559909,28186.0,28184.0,0.05013721]
[1680638198320,0.313,28186.0,28185.0,0.46334936]
[1680638198544,0.01321,28186.0,28185.0,0.46327801]
[1680638198780,0.313,28186.0,28185.0,0.46327801]
[1680638199003,0.30021,28186.0,28185.0,0.46334936]
[1680638199123,0.30021,28186.0,28185.0,0.46234936]
[1680638199360,0.00021,28186.0,28185.0,0.46234936]
[1680638199562,0.14996335,28188.0,28185.0,0.5452423]
[1680638199793,0.14996335,28188.0,28186.0,0.15]
[1680638200436,0.00597652,28188.0,28186.0,0.15]
[1680638201098,0.02397652,28188.0,28187.0,0.4298304]
[1680638201728,0.00597652,28188.0,28187.0,0.4299504]
[1680638201957,0.02397652,28188.0,28187.0,0.00212]
[1680638202177,0.02397652,28188.0,28187.0,0.002]
[1680638202809,0.072503,28188.0,28187.0,0.002]
[1680638203016,0.072503,28188.0,28187.0,0.37651874]
[1680638203246,0.02397652,28188.0,28187.0,0.41252274]
[1680638203457,0.00597652,28188.0,28187.0,0.41064274]
[1680638203894,0.00597652,28188.0,28187.0,0.37463874]
[1680638204091,0.00597652,28188.0,28187.0,0.00012]
[1680638204311,0.00597652,28188.0,28185.0,0.00018]
[1680638204312,0.22132387,28188.0,28185.0,0.00018]
[1680638204547,0.22132387,28188.0,28183.0,0.4735]
[1680638204548,0.53760559,28187.0,28184.0,0.00018]
[1680638205423,0.021448,28186.0,28184.0,0.00018]
[1680638205640,0.39754978,28185.0,28184.0,0.00018]
[1680638206038,0.43725444,28185.0,28184.0,0.00018]
[1680638206279,0.43725444,28185.0,28182.0,0.00018]
[1680638206280,0.81321412,28185.0,28182.0,0.00018]
[1680638206511,0.3,28184.0,28182.0,0.00018]
[1680638206734,0.3,28184.0,28181.0,0.00117821]
[1680638206735,0.022895,28183.0,28181.0,0.00117821]
[1680638206954,0.022895,28183.0,28179.0,0.4851]
[1680638206955,0.21603971,28183.0,28180.0,0.00018]
[1680638207175,0.35338264,28182.0,28180.0,0.00018]
[1680638207827,0.35338264,28182.0,28181.0,0.001]
[1680638207995,0.35338264,28182.0,28181.0,0.00018]
[1680638208216,0.3,28182.0,28181.0,0.00018]
[1680638210467,0.31821,28182.0,28181.0,0.002]
[1680638210671,0.30021,28182.0,28180.0,0.39693825]
[1680638211023,0.31321,28182.0,28181.0,0.001]
[1680638212063,0.313,28182.0,28181.0,0.00118]
[1680638214219,0.38386483,28182.0,28181.0,0.00118]
[1680638214640,0.40186483,28182.0,28181.0,0.00318]
[1680638215656,0.6181775,28182.0,28181.0,0.003]
[1680638215874,0.6179675,28182.0,28181.0,0.00318]
[1680638217191,0.54710267,28182.0,28181.0,0.00318]
[1680638217881,0.331,28182.0,28181.0,0.36085384]
[1680638218305,0.331,28182.0,28181.0,0.39827884]
[1680638219643,0.331,28182.0,28181.0,0.00318]
[1680638219644,0.48306681,28182.0,28181.0,0.00318]
[1680638219859,0.18306681,28182.0,28181.0,0.003]
[1680638220943,0.18296485,28182.0,28181.0,0.003]
[1680638221439,0.03089804,28182.0,28181.0,0.003]
[1680638223718,0.50089804,28182.0,28181.0,0.003]
[1680638223971,0.20089804,28182.0,28181.0,0.003]
[1680638224187,0.50089804,28182.0,28181.0,0.003]
[1680638226394,0.50089804,28182.0,28181.0,0.46805099]
[1680638226628,0.20089804,28182.0,28181.0,0.55113909]
[1680638226847,0.20089804,28182.0,28181.0,0.55107909]
[1680638227062,0.20089804,28182.0,28181.0,0.50431599]
[1680638227503,0.20089804,28182.0,28181.0,0.039265]
[1680638227716,0.3789476,28182.0,28181.0,0.003]
[1680638231688,0.41497976,28182.0,28181.0,0.003]
[1680638232140,0.41497976,28182.0,28181.0,0.040766]
[1680638232358,0.2369302,28182.0,28181.0,0.040766]
[1680638232814,0.2369302,28182.0,28181.0,0.00312]
[1680638233486,0.2369302,28182.0,28181.0,0.040742]
[1680638233913,0.2369302,28182.0,28181.0,0.00312]
[1680638234154,0.2369302,28182.0,28181.0,0.003]
[1680638235337,0.27854138,28182.0,28181.0,0.003]
[1680638236936,0.2369302,28182.0,28181.0,0.003]
[1680638237152,0.2369302,28182.0,28181.0,0.00288133]
[1680638237589,0.4067061,28182.0,28181.0,0.00288133]
[1680638238027,0.62280877,28182.0,28181.0,0.00288133]
[1680638239784,0.62280877,28182.0,28181.0,0.00222862]
[1680638241360,0.64515577,28182.0,28181.0,0.00222862]
[1680638241798,0.62280877,28182.0,28181.0,0.00222862]
[1680638242782,0.62301877,28182.0,28181.0,0.00222862]
[1680638243439,0.62280877,28182.0,28181.0,0.00222862]
[1680638246199,0.62301877,28182.0,28181.0,0.00222862]
[1680638246422,0.62280877,28182.0,28181.0,0.00222862]
[1680638247554,0.85569841,28182.0,28181.0,0.00222862]
[1680638247786,1.03722816,28182.0,28181.0,0.00222862]
[1680638248951,1.03743816,28182.0,28181.0,0.00222862]
[1680638249415,1.0196515,28182.0,28181.0,0.00222862]
[1680638252039,0.83812175,28182.0,28181.0,0.00222862]
[1680638252249,0.83791175,28182.0,28181.0,0.00222862]
[1680638252878,1.00737238,28182.0,28181.0,0.00222862]
[1680638253835,1.00758238,28182.0,28181.0,0.00222862]
[1680638254979,1.00737238,28182.0,28181.0,0.00222862]
[1680638255405,1.00758238,28182.0,28181.0,0.00222862]
[1680638260093,0.98500538,28182.0,28181.0,0.00222862]
[1680638260319,0.98472255,28182.0,28181.0,0.00222862]
[1680638260517,1.00643455,28182.0,28181.0,0.00222862]
[1680638260725,1.00671055,28182.0,28181.0,0.00222862]
[1680638262676,0.15040658,28181.0,28176.0,0.3659988]
[1680638262834,0.15040658,28181.0,28176.0,0.36698549]
[1680638262835,0.21648045,28180.0,28176.0,0.36698549]
[1680638263052,0.00021,28180.0,28176.0,0.71059599]
[1680638263274,0.21044804,28181.0,28177.0,0.54147622]
[1680638263455,0.3,28180.0,28177.0,0.5082654]
[1680638263662,0.30021,28180.0,28178.0,0.036672]
[1680638265286,0.53157736,28180.0,28178.0,0.037672]
[1680638265501,0.53157736,28180.0,28178.0,0.001]
[1680638266143,0.53157736,28180.0,28178.0,0.039477]
[1680638266350,0.53157736,28180.0,28178.0,0.44524871]
[1680638266567,0.53157736,28180.0,28179.0,0.037194]
[1680638267528,0.52457736,28180.0,28179.0,0.037194]
[1680638267766,0.52457736,28180.0,28179.0,0.038194]
[1680638267767,0.53857736,28180.0,28179.0,0.038194]
[1680638267990,0.53857736,28180.0,28179.0,0.001]
[1680638268858,0.31421,28180.0,28179.0,0.001]
[1680638269100,0.01421,28180.0,28179.0,0.03913]
[1680638269325,0.01421,28180.0,28179.0,0.001]
[1680638269326,0.31421,28180.0,28179.0,0.001]
[1680638270493,0.38332796,28180.0,28179.0,0.001]
[1680638273472,0.31421,28180.0,28179.0,0.001]
[1680638275374,0.74240936,28180.0,28179.0,0.001]
[1680638276408,0.52605486,28180.0,28179.0,0.001]
[1680638283346,0.52605486,28180.0,28179.0,0.038945]
[1680638283549,0.52605486,28180.0,28179.0,0.001]
[1680638283672,0.59566035,28180.0,28179.0,0.001]
[1680638284489,0.52605486,28180.0,28179.0,0.001]
[1680638285125,0.52605486,28180.0,28179.0,0.035652]
[1680638285567,0.52605486,28180.0,28179.0,0.001]
[1680638286490,0.31421,28180.0,28179.0,0.037947]
[1680638286760,0.01409119,28180.0,28179.0,0.50703695]
[1680638286969,0.014,28180.0,28179.0,0.58736053]
[1680638287919,0.009,28180.0,28179.0,0.58748053]
[1680638288571,0.009,28180.0,28179.0,0.58736053]
[1680638290036,0.009,28180.0,28179.0,0.58748053]
[1680638290452,0.009,28180.0,28179.0,0.58736053]
[1680638291262,0.009,28180.0,28179.0,0.50703695]
[1680638291692,0.009,28180.0,28179.0,0.47008995]
[1680638291909,0.009,28180.0,28179.0,0.47020995]
[1680638292119,0.009,28180.0,28179.0,0.50703895]
[1680638292339,0.009,28180.0,28179.0,0.47020995]
[1680638292771,0.009,28180.0,28179.0,0.50751195]
[1680638293224,0.009,28180.0,28179.0,0.50739195]
[1680638293648,0.009,28180.0,28179.0,0.47008995]
[1680638294786,0.009,28180.0,28179.0,0.50930795]
[1680638297716,0.009,28180.0,28179.0,0.47008995]
[1680638298170,0.009,28180.0,28179.0,0.47020995]
[1680638298401,0.009,28180.0,28179.0,0.50621295]
[1680638298623,0.009,28180.0,28179.0,0.50763395]
[1680638299709,0.009,28180.0,28179.0,0.08573864]
[1680638299933,0.009,28180.0,28179.0,0.08561864]
[1680638300139,0.009,28180.0,28179.0,0.12176664]
[1680638301423,0.009,28180.0,28179.0,0.24849205]
[1680638301596,0.009,28180.0,28179.0,0.12176664]
[1680638301990,0.009,28180.0,28179.0,0.2485306]
[1680638302211,0.009,28180.0,28179.0,0.6038464]
[1680638302448,0.009,28180.0,28179.0,0.51906921]
[1680638302649,0.009,28180.0,28179.0,0.6629111]
[1680638303058,0.009,28180.0,28179.0,0.74756798]
[1680638303283,0.009,28180.0,28179.0,0.6629111]
[1680638303770,0.009,28180.0,28179.0,0.6630311]
[1680638305209,0.009,28180.0,28179.0,0.70571909]
[1680638305425,0.009,28180.0,28179.0,0.66330407]
[1680638305628,0.009,28180.0,28179.0,0.51946218]
[1680638306966,0.009,28180.0,28179.0,0.12201546]
[1680638307229,0.24563489,28180.0,28179.0,0.08567046]
[1680638307459,0.24563489,28180.0,28179.0,0.12300446]
[1680638307664,0.24563489,28180.0,28179.0,0.12312446]
[1680638308004,0.24563489,28180.0,28179.0,0.00112]
[1680638308232,0.3388075,28180.0,28179.0,0.001]
[1680638308512,0.555162,28180.0,28179.0,0.001]
[1680638312298,0.29693311,28180.0,28179.0,0.001]
[1680638312540,0.50920712,28180.0,28179.0,0.001]
[1680638314475,0.43762851,28180.0,28179.0,0.001]
[1680638314961,0.4377797,28180.0,28177.0,0.12717838]
[1680638315173,0.4377797,28180.0,28177.0,0.12699838]
[1680638315377,0.4377797,28180.0,28178.0,0.036506]
[1680638316797,0.4287797,28180.0,28178.0,0.036506]
[1680638317425,0.4347797,28180.0,28178.0,0.037506]
[1680638317627,0.36130878,28179.0,28178.0,0.001]
[1680638317773,0.36130878,28179.0,28178.0,0.039261]
[1680638317972,0.36145997,28179.0,28178.0,0.039261]
[1680638318726,0.36145997,28179.0,28178.0,0.189261]
[1680638318956,0.00015119,28179.0,28178.0,0.189261]
[1680638319176,0.35789058,28180.0,28178.0,0.039261]
[1680638319392,0.35804177,28180.0,28178.0,0.039261]
[1680638319575,0.35204177,28180.0,28178.0,0.038261]
[1680638319790,0.006,28179.0,28178.0,0.039261]
[1680638320010,0.35204177,28180.0,28178.0,0.038261]
[1680638320233,0.35804177,28180.0,28178.0,0.039261]
[1680638320447,0.35204177,28180.0,28178.0,0.038261]
[1680638320666,0.006,28179.0,28178.0,0.039261]
[1680638320891,0.35204177,28180.0,28178.0,0.188261]
[1680638321106,0.35804177,28180.0,28179.0,0.035997]
[1680638321323,0.35804177,28180.0,28178.0,0.188008]
[1680638321550,0.35204177,28180.0,28179.0,0.036744]
[1680638322419,0.35204177,28180.0,28178.0,0.037687]
[1680638322869,0.006,28179.0,28178.0,0.038687]
[1680638323079,0.35204177,28180.0,28178.0,0.037687]
[1680638323296,0.36504177,28180.0,28179.0,0.001]
[1680638323523,0.35204177,28180.0,28178.0,0.037687]
[1680638323996,0.006,28179.0,28178.0,0.038687]
[1680638324338,0.35204177,28180.0,28178.0,0.037687]
[1680638324566,0.36504177,28180.0,28179.0,0.001]
[1680638324771,0.35204177,28180.0,28178.0,0.037687]
[1680638324975,0.35204177,28180.0,28178.0,0.12234883]
[1680638325182,0.00015119,28180.0,28179.0,0.037377]
[1680638325417,0.31649049,28181.0,28179.0,0.037377]
[1680638325574,0.53278204,28181.0,28179.0,0.037377]
[1680638325973,0.21644274,28181.0,28179.0,0.40872907]
[1680638326208,0.00015119,28181.0,28180.0,0.30472718]
[1680638326535,0.00015119,28181.0,28180.0,0.45472718]
[1680638326763,0.01315119,28181.0,28180.0,0.30472718]
[1680638326978,0.00015119,28181.0,28180.0,0.30472718]
[1680638327182,0.01615119,28181.0,28180.0,0.30672718]
[1680638328397,0.01615119,28181.0,28180.0,0.039533]
[1680638328602,0.01615119,28181.0,28180.0,0.002]
[1680638329169,0.01615119,28181.0,28180.0,0.188681]
[1680638330427,0.01615119,28181.0,28180.0,0.37136849]
[1680638330428,0.016,28181.0,28180.0,0.37136849]
[1680638330646,0.016,28181.0,28180.0,0.92357309]
[1680638331088,0.016,28181.0,28180.0,0.79657471]
[1680638331345,0.016,28181.0,28180.0,0.92357309]
[1680638331760,0.016,28181.0,28180.0,0.79657471]
[1680638332418,0.016,28181.0,28180.0,0.60989371]
[1680638332679,0.016,28181.0,28180.0,0.00212]
[1680638332910,0.016,28181.0,28180.0,0.002]
[1680638334043,0.35190049,28181.0,28180.0,0.002]
[1680638334936,0.35182146,28181.0,28180.0,0.002]
[1680638335440,0.01592097,28181.0,28180.0,0.002]
[1680638335664,0.01592097,28181.0,28180.0,0.39072815]
[1680638338113,0.01592097,28181.0,28180.0,0.39542815]
[1680638340455,0.01592097,28181.0,28180.0,0.0067]
[1680638342261,0.41391477,28181.0,28180.0,0.1523]
[1680638342476,0.41406596,28181.0,28180.0,0.1523]
[1680638344227,0.41406596,28181.0,28180.0,0.0023]
[1680638346057,0.41406596,28181.0,28180.0,0.1523]
[1680638347442,0.41406596,28181.0,28180.0,0.0023]
[1680638349667,0.41406596,28181.0,28180.0,0.1523]
[1680638349883,0.41406596,28181.0,28180.0,0.62616708]
[1680638349884,0.01607216,28181.0,28180.0,0.62616708]
[1680638350098,0.01592097,28181.0,28180.0,0.62616708]
[1680638350744,0.01592097,28181.0,28180.0,0.54186302]
[1680638352179,0.01592097,28181.0,28180.0,0.62652318]
[1680638352617,0.01592097,28181.0,28179.0,0.00012]
[1680638352618,0.35240415,28181.0,28179.0,0.00012]
[1680638352844,0.35240415,28181.0,28177.0,0.51598]
[1680638352845,0.021063,28180.0,28177.0,0.51598]
[1680638353071,0.021063,28180.0,28177.0,0.51592]
[1680638353513,0.07542483,28180.0,28177.0,0.51592]
[1680638353705,0.022356,28179.0,28177.0,0.51592]
[1680638354155,0.021856,28180.0,28177.0,0.5158]
[1680638354835,0.021856,28180.0,28177.0,0.91603581]
[1680638355064,0.021856,28180.0,28177.0,0.5158]
[1680638355281,0.40491375,28180.0,28177.0,0.5158]
[1680638355506,0.020919,28179.0,28177.0,0.5158]
[1680638355750,0.38320894,28180.0,28177.0,0.5158]
[1680638356881,0.42685478,28179.0,28177.0,0.5158]
[1680638357104,0.42700597,28179.0,28177.0,0.5158]
[1680638359670,0.42700597,28179.0,28177.0,0.51534225]
[1680638359909,0.42700597,28179.0,28177.0,0.51540225]
[1680638360416,0.42700597,28179.0,28177.0,0.51528225]
[1680638360870,0.00115119,28179.0,28177.0,0.52128225]
[1680638361106,0.001,28179.0,28177.0,0.52128225]
[1680638361782,0.40829707,28180.0,28177.0,0.51528225]
[1680638362038,0.020692,28179.0,28177.0,0.51528225]
[1680638363973,0.027692,28179.0,28177.0,0.51628225]
[1680638364177,0.007,28179.0,28177.0,0.51628225]
[1680638364383,0.40844826,28180.0,28177.0,0.51528225]
[1680638364624,0.029221,28179.0,28177.0,0.51628225]
[1680638364852,0.007,28179.0,28177.0,0.51628225]
[1680638365488,0.40844826,28180.0,28177.0,0.51528225]
[1680638365690,0.021676,28179.0,28177.0,0.51528225]
[1680638365903,0.41414507,28179.0,28177.0,0.51528225]
[1680638366134,0.021361,28178.0,28177.0,0.51628225]
[1680638366343,0.021361,28178.0,28177.0,0.51528225]
[1680638366344,0.49225484,28178.0,28177.0,0.51528225]
[1680638366560,0.49225484,28178.0,28177.0,0.001]
[1680638366561,0.79240603,28178.0,28177.0,0.001]
[1680638366790,0.79225484,28178.0,28175.0,0.0011]
[1680638367013,0.022223,28177.0,28175.0,0.0011]
[1680638367232,0.022223,28177.0,28175.0,0.33035323]
[1680638367233,0.0800268,28176.0,28175.0,0.33035323]
[1680638367436,0.021904,28176.0,28175.0,0.33035323]
[1680638367659,0.02307719,28177.0,28175.0,0.33035323]
[1680638368085,0.00015119,28177.0,28175.0,0.0011]
[1680638368303,0.021626,28177.0,28175.0,0.0011]
[1680638369192,0.018,28177.0,28176.0,0.22144929]
[1680638369414,0.018,28177.0,28176.0,0.25884929]
[1680638369897,0.018,28177.0,28176.0,0.40884929]
[1680638370348,0.00015119,28180.0,28176.0,0.40884929]
[1680638370563,0.016,28177.0,28176.0,0.37344929]
[1680638370786,0.016,28177.0,28176.0,0.50892541]
[1680638371852,0.00015119,28180.0,28176.0,0.50692541]
[1680638372062,0.00015119,28180.0,28177.0,0.15]
[1680638372537,0.00015119,28180.0,28176.0,0.47555941]
[1680638372767,0.00015119,28180.0,28176.0,0.37744929]
[1680638373199,0.00015119,28180.0,28176.0,0.18148823]
[1680638373418,0.00015119,28180.0,28177.0,0.36528471]
[1680638373865,0.00015119,28180.0,28178.0,0.15]
[1680638374085,0.00015119,28180.0,28177.0,0.36528471]
[1680638376045,0.00015119,28180.0,28178.0,0.15]
[1680638376267,0.00015119,28180.0,28177.0,0.36528471]
[1680638376487,0.72237721,28181.0,28177.0,0.36540471]
[1680638376704,0.72237721,28181.0,28177.0,0.36528471]
[1680638378024,0.007,28180.0,28178.0,0.001]
[1680638378239,0.72237721,28181.0,28177.0,0.36540471]
[1680638378449,0.72237721,28181.0,28177.0,0.36528471]
[1680638379353,0.47015119,28181.0,28177.0,0.36528471]
[1680638379559,0.17015119,28181.0,28178.0,0.47649672]
[1680638379790,0.17,28181.0,28179.0,0.187451]
[1680638379993,0.17,28181.0,28180.0,0.036308]
[1680638380246,0.17,28181.0,28180.0,0.11387587]
[1680638381042,0.17015119,28181.0,28180.0,0.11387587]
[1680638381474,0.17,28181.0,28180.0,0.47103963]
[1680638381890,0.177,28181.0,28180.0,0.47103963]
[1680638382090,0.17,28181.0,28180.0,0.47103963]
[1680638382299,0.184,28181.0,28180.0,0.47203963]
[1680638386308,0.00015119,28183.0,28181.0,0.06222196]
[1680638386541,0.10816671,28191.0,28183.0,0.37374881]
[1680638386542,0.0232,28191.0,28183.0,0.37374881]
[1680638386756,0.0232,28191.0,28185.0,0.37374881]
[1680638386970,0.0232,28191.0,28186.0,1.08201564]
[1680638387177,0.0232,28191.0,28187.0,0.037276]
[1680638387397,0.0232,28191.0,28188.0,0.49660737]
[1680638387617,0.0232,28191.0,28189.0,0.037676]
[1680638387854,0.0232,28191.0,28190.0,0.15]
[1680638388071,0.03209377,28191.0,28190.0,0.09080566]
[1680638389122,0.03209377,28191.0,28190.0,0.10480566]
[1680638390425,0.20209377,28191.0,28190.0,0.10480566]
[1680638392080,0.03209377,28191.0,28190.0,0.10480566]
[1680638392495,0.03209377,28191.0,28190.0,0.06823866]
[1680638392705,0.03209377,28191.0,28190.0,0.014]
[1680638392939,0.05405277,28191.0,28190.0,0.014]
[1680638393583,0.05405277,28191.0,28184.0,0.34045169]
[1680638393797,0.43399574,28191.0,28190.0,0.014]
[1680638394016,0.35340177,28191.0,28190.0,0.014]
[1680638394242,0.42912134,28191.0,28190.0,0.014]
[1680638394458,2.39661811,28191.0,28182.0,0.00018]
[1680638394671,1.9639303,28190.0,28181.0,0.27863641]
[1680638394876,0.27486241,28189.0,28181.0,0.27863641]
[1680638395092,0.53622802,28188.0,28181.0,0.27863641]
[1680638395333,0.019637,28187.0,28181.0,0.27863641]
[1680638395567,0.23542491,28187.0,28181.0,0.27863641]
[1680638395781,0.21599791,28187.0,28182.0,0.18411283]
[1680638396418,0.21599791,28187.0,28183.0,0.2087186]
[1680638396679,0.45656579,28186.0,28183.0,0.2087186]
[1680638396909,0.45677579,28186.0,28183.0,0.24378014]
[1680638397338,0.00021,28187.0,28183.0,0.24396014]
[1680638397552,0.64282566,28188.0,28183.0,0.24390014]
[1680638397773,0.00021,28189.0,28184.0,0.16629282]
[1680638397995,0.3,28189.0,28184.0,0.31629282]
[1680638398209,0.30021,28189.0,28184.0,0.31629282]
[1680638398421,0.30021,28189.0,28185.0,0.035811]
[1680638398632,0.3,28189.0,28184.0,0.17457601]
[1680638398852,0.3,28189.0,28185.0,0.1025876]
[1680638399067,0.3,28189.0,28186.0,0.185332]
[1680638399314,0.3,28189.0,28187.0,0.26680991]
[1680638399533,0.30021,28189.0,28187.0,0.26680991]
[1680638400172,0.30021,28189.0,28186.0,0.00018]
[1680638400173,0.21528442,28188.0,28186.0,0.00018]
[1680638400391,0.21528442,28188.0,28184.0,0.33187116]
[1680638400392,0.55250734,28188.0,28184.0,0.33187116]
[1680638400637,0.55250734,28188.0,28184.0,0.38524828]
[1680638400853,0.55250734,28188.0,28186.0,0.021]
[1680638401278,0.55250734,28188.0,28184.0,0.30405116]
[1680638401487,0.55250734,28188.0,28186.0,0.014]
[1680638401697,0.021896,28187.0,28184.0,0.30405116]
[1680638401907,0.55250734,28188.0,28186.0,0.014]
[1680638402134,0.36700249,28187.0,28186.0,0.014]
[1680638402998,0.762589,28189.0,28186.0,0.014]
[1680638403241,0.3,28189.0,28186.0,0.014]
[1680638403458,0.3,28189.0,28186.0,0.164]
[1680638403675,0.71651185,28189.0,28186.0,0.164]
[1680638404109,0.71651185,28189.0,28187.0,0.04639808]
[1680638404330,0.38441698,28190.0,28188.0,0.038457]
[1680638404554,0.00021,28190.0,28188.0,0.038457]
[1680638404768,0.03188377,28191.0,28189.0,0.34838368]
[1680638405001,0.02299,28191.0,28189.0,0.34838368]
[1680638406103,0.02699,28191.0,28189.0,0.34838368]
[1680638407836,0.37421748,28190.0,28187.0,0.17257637]
[1680638408053,0.37421748,28190.0,28187.0,0.008]
[1680638408918,0.37421748,28190.0,28187.0,0.16721894]
[1680638409139,0.37442748,28190.0,28187.0,0.16721894]
[1680638409354,0.37421748,28190.0,28187.0,0.16721894]
[1680638409570,0.37442748,28190.0,28187.0,0.16721894]
[1680638410058,0.00021,28190.0,28188.0,0.13461865]
[1680638410268,0.02999,28191.0,28189.0,0.036126]
[1680638410482,0.32999,28191.0,28188.0,0.13461865]
[1680638410691,0.3302,28191.0,28188.0,0.13461865]
[1680638410907,0.75783645,28191.0,28188.0,0.13461865]
[1680638411374,0.75783645,28191.0,28188.0,0.13561865]
[1680638412229,0.75783645,28191.0,28188.0,0.001]
[1680638412488,0.34577025,28190.0,28188.0,0.001]
[1680638413774,0.021331,28189.0,28188.0,0.001]
[1680638413997,0.34577025,28190.0,28188.0,0.001]
[1680638414639,0.021809,28189.0,28186.0,0.08937934]
[1680638414857,0.34577025,28190.0,28186.0,0.08937934]
[1680638415313,0.34577025,28190.0,28188.0,0.001]
[1680638415529,0.34577025,28190.0,28186.0,0.08937934]
[1680638415749,0.34577025,28190.0,28186.0,0.10337934]
[1680638415964,0.34577025,28190.0,28186.0,0.08937934]
[1680638416185,0.34577025,28190.0,28188.0,0.001]
[1680638416476,0.34577025,28190.0,28186.0,0.08937934]
[1680638417493,0.34577025,28190.0,28187.0,0.036521]
[1680638417703,0.34577025,28190.0,28186.0,0.08937934]
[1680638417906,0.3267,28191.0,28188.0,0.11713159]
[1680638418116,0.0267,28191.0,28189.0,0.01171316]
[1680638418323,0.02649,28191.0,28189.0,0.01171316]
[1680638418528,0.32649,28191.0,28189.0,0.01171316]
[1680638418792,0.3267,28191.0,28189.0,0.01171316]
[1680638419048,0.3267,28191.0,28188.0,0.11713159]
[1680638419288,0.0297,28191.0,28188.0,0.19434143]
[1680638419513,0.02949,28191.0,28189.0,0.038455]
[1680638419741,0.02949,28191.0,28190.0,0.15]
[1680638419963,0.02949,28191.0,28190.0,0.187631]
[1680638419964,0.02649,28191.0,28190.0,0.187631]
[1680638420186,0.02649,28191.0,28190.0,0.22582824]
[1680638420403,0.02649,28191.0,28190.0,0.37790053]
[1680638420844,0.02299,28191.0,28190.0,0.37790053]
[1680638421954,0.02299,28191.0,28190.0,0.39190053]
[1680638422632,0.02299,28191.0,28190.0,0.37790053]
[1680638422849,0.02299,28191.0,28190.0,0.39190053]
[1680638423133,0.02299,28191.0,28190.0,0.37790053]
[1680638423347,0.02299,28191.0,28190.0,0.39190053]
[1680638424008,0.02299,28191.0,28190.0,0.24190053]
[1680638424561,0.02299,28191.0,28190.0,0.20370329]
[1680638427725,0.02299,28191.0,28190.0,0.21430329]
[1680638428403,0.02299,28191.0,28190.0,0.0246]
[1680638428630,0.42306641,28191.0,28190.0,0.0246]
[1680638428854,0.42306641,28191.0,28190.0,0.014]
[1680638429075,0.44618941,28191.0,28190.0,0.014]
[1680638429330,0.49170327,28191.0,28190.0,0.014]
[1680638429769,0.49191327,28191.0,28190.0,0.014]
[1680638430441,0.44639941,28191.0,28190.0,0.014]
[1680638431038,0.42327641,28191.0,28190.0,0.014]
[1680638431464,0.44540041,28191.0,28190.0,0.014]
[1680638432049,0.66037021,28191.0,28190.0,0.014]
[1680638435527,0.5602938,28191.0,28190.0,0.014]
[1680638435794,0.62802707,28191.0,28190.0,0.014]
[1680638436877,0.62802707,28191.0,28184.0,0.16926094]
[1680638437101,0.53695935,28190.0,28184.0,0.16926094]
[1680638437321,0.021441,28189.0,28184.0,0.16926094]
[1680638437544,0.2156832,28189.0,28184.0,0.16926094]
[1680638437756,0.3,28188.0,28185.0,0.10058286]